bitfinex/quotes_SOLUSD_20250708
["timestamp","ask_amount","ask_price","bid_price","bid_amount"]
[1751941160203,0.2,149.11,149.06,7.78852225]
[1751941160498,6.90652783,149.11,149.06,7.78852225]
[1751941160805,6.90652783,149.11,149.05,260.1]
[1751941160980,6.90652783,149.11,149.06,7.78852225]
[1751941161312,18.64964886,149.1,149.05,26.0]
[1751941161619,18.64964886,149.1,149.04,7.78852225]
[1751941162298,18.64964886,149.1,149.03,113.3]
[1751941162485,18.64964886,149.1,149.03,121.08852225]
[1751941163013,18.64964886,149.08,149.03,26.0]
[1751941163204,18.64964886,149.08,149.04,7.78852225]
[1751941163389,6.70703209,149.1,149.03,33.78852225]
[1751941163705,6.70703209,149.1,149.04,7.78852225]
[1751941163883,25.55619286,149.11,149.04,7.78852225]
[1751941164084,18.84964886,149.11,149.05,7.78852225]
[1751941164285,25.55624329,149.11,149.05,7.78852225]
[1751941164899,25.55624329,149.11,149.03,33.78852225]
[1751941165287,7.40289597,149.1,149.03,26.0]
[1751941165492,7.40289597,149.1,149.01,7.78852225]
[1751941165694,18.64964886,149.08,149.01,7.78852225]
[1751941165895,1.6403,149.08,149.01,7.78852225]
[1751941166212,6.6557,149.07,148.97,87.3]
[1751941166409,6.6557,149.07,148.93,14.5495519]
[1751941166410,18.64964886,149.06,148.93,14.5495519]
[1751941166708,18.64964886,149.03,148.95,7.78852225]
[1751941166902,18.64964886,149.03,148.94,33.78852225]
[1751941167095,14.12570192,149.02,148.94,33.78852225]
[1751941167404,27.71355697,149.01,148.92,7.78852225]
[1751941167589,81.14934886,149.01,148.91,7.88852225]
[1751941168000,18.64964886,148.99,148.91,33.88852225]
[1751941168199,18.64964886,149.0,148.92,7.78852225]
[1751941168419,7.43220929,148.99,148.91,26.1]
[1751941168596,18.64964886,148.97,148.92,7.78852225]
[1751941168905,18.64964886,149.0,148.93,7.78852225]
[1751941169121,34.88,149.03,148.97,7.78852225]
[1751941169417,7.4330896,149.02,148.98,7.78852225]
[1751941169616,18.64964886,149.04,148.99,7.78852225]
[1751941169814,18.64964886,149.04,148.98,7.78852225]
[1751941170587,25.35930251,149.04,148.97,113.3]
[1751941170785,25.35930251,149.04,148.98,7.78852225]
[1751941171091,18.64964886,149.04,148.98,7.78852225]
[1751941171501,7.45517168,149.03,148.98,7.78852225]
[1751941171706,7.45517168,149.02,148.97,87.3]
[1751941171996,7.45517168,149.01,148.97,87.3]
[1751941172198,7.45517168,149.0,148.97,87.3]
[1751941172411,34.59878675,149.04,148.96,7.78852225]
[1751941172613,7.45775221,149.03,148.95,113.3]
[1751941172923,26.10740107,149.02,148.93,87.3]
[1751941173213,18.64964886,149.0,148.92,33.78852225]
[1751941173504,18.64964886,148.98,148.92,33.78852225]
[1751941174079,34.88,149.0,148.93,7.78852225]
[1751941174307,18.64964886,148.99,148.95,7.78852225]
[1751941174693,6.71005837,149.03,148.95,33.78852225]
[1751941174898,26.10917159,149.02,148.95,33.78852225]
[1751941175101,7.45952273,149.01,148.96,7.78852225]
[1751941175501,18.64964886,149.02,148.96,7.78852225]
[1751941175915,18.64964886,149.02,148.97,7.78852225]
[1751941176121,18.64964886,149.04,148.97,7.78852225]
[1751941176302,18.64964886,149.02,148.97,7.78852225]
[1751941176813,18.64964886,149.04,148.97,7.78852225]
[1751941177118,18.64964886,149.02,148.97,7.78852225]
[1751941177419,18.64964886,149.04,148.97,7.78852225]
[1751941177603,7.46506121,149.03,148.98,7.78852225]
[1751941177803,18.64964886,149.04,148.98,7.78852225]
[1751941178005,7.46561023,149.03,148.98,7.78852225]
[1751941178814,7.46561023,149.03,149.0,7.78852225]
[1751941179020,8.8155,149.05,148.99,26.0]
[1751941179324,7.46474477,149.04,149.0,7.78852225]
[1751941179515,7.46474477,149.04,148.99,26.0]
[1751941179697,7.46474477,149.04,149.0,7.78852225]
[1751941180519,8.8155,149.05,149.0,7.78852225]
[1751941182309,8.8155,149.05,149.01,7.78852225]
[1751941182310,7.2,149.05,149.01,7.78852225]
[1751941182923,7.2,149.05,149.02,7.78852225]
[1751941183232,18.64964886,149.08,149.02,7.78852225]
[1751941183429,18.64964886,149.08,149.01,7.78852225]
[1751941183826,18.64964886,149.08,149.02,7.78852225]
[1751941184740,25.35755998,149.08,149.02,7.78852225]
[1751941186025,25.35755998,149.08,149.0,87.44216157]
[1751941186231,18.64964886,149.08,149.01,7.78852225]
[1751941186426,25.35758277,149.08,149.02,7.78852225]
[1751941186624,18.64964886,149.08,149.03,7.78852225]
[1751941187018,18.64964886,149.08,149.04,7.78852225]
[1751941187527,18.64964886,149.08,149.04,95.08852225]
[1751941187829,1.5771,149.09,149.05,7.78852225]
[1751941188009,1.5771,149.09,149.05,95.08852225]
[1751941189128,0.03,149.1,149.06,7.78852225]
[1751941191730,0.03,149.1,149.05,26.0]
[1751941191909,0.03,149.1,149.06,7.78852225]
[1751941192110,0.03,149.1,149.07,7.78852225]
[1751941192338,0.03,149.1,149.08,7.78852225]
[1751941192833,0.03,149.1,149.07,7.78852225]
[1751941196823,18.67964886,149.1,149.04,87.3]
[1751941197023,18.67964886,149.1,149.04,234.1]
[1751941197230,0.03,149.1,149.05,7.78852225]
[1751941197435,0.03,149.1,149.06,7.78852225]
[1751941197925,18.67964886,149.1,149.04,7.78852225]
[1751941198941,6.73706725,149.1,149.04,7.78852225]
[1751941200450,6.73706725,149.1,149.03,7.78852225]
[1751941200451,25.38671611,149.1,149.03,7.78852225]
[1751941200633,25.38671611,149.1,149.02,7.78852225]
[1751941201233,25.38671611,149.1,149.03,7.78852225]
[1751941202639,18.64964886,149.09,149.04,7.78852225]
[1751941202944,18.64964886,149.09,149.03,4.54344242]
[1751941203746,18.64964886,149.09,149.03,4.60344242]
[1751941205025,18.64964886,149.09,149.03,238.70344242]
[1751941205750,18.64964886,149.09,149.04,4.54344242]
[1751941205928,18.67964886,149.1,149.05,4.54344242]
[1751941206338,18.67964886,149.1,149.03,240.86992134]
[1751941206548,18.67964886,149.1,149.05,4.54344242]
[1751941207729,0.03,149.1,149.07,4.54344242]
[1751941207944,0.03,149.1,149.08,4.54344242]
[1751941208151,0.03,149.1,149.07,238.64344242]
[1751941209544,0.03,149.1,149.07,234.1]
[1751941209746,0.03,149.1,149.07,238.64344242]
[1751941212351,0.03,149.1,149.08,4.54344242]
[1751941212555,0.03,149.1,149.09,4.54344242]
[1751941215352,0.2,149.13,149.12,86.87]
[1751941216453,7.65693221,149.19,149.13,6.0495]
[1751941216654,6.904403,149.25,149.13,6.0495]
[1751941216655,0.2,149.25,149.18,9.08688484]
[1751941216854,33.95621592,149.35,149.18,9.08688484]
[1751941216855,3.92881617,149.3,149.24,9.08688484]
[1751941217045,20.148426,149.38,149.29,4.54344242]
[1751941217247,20.148426,149.38,149.27,26.0]
[1751941217248,6.69120107,149.45,149.37,4.54344242]
[1751941217471,6.69120107,149.45,149.41,3.82536821]
[1751941217766,6.69030574,149.47,149.42,4.54344242]
[1751941217988,6.69030574,149.47,149.38,4.54344242]
[1751941217989,3.0113446,149.48,149.38,4.54344242]
[1751941217990,19.70126324,149.48,149.38,4.54344242]
[1751941218261,19.70126324,149.48,149.34,0.14216157]
[1751941218262,10.0,149.45,149.34,0.14216157]
[1751941218764,10.0,149.45,149.32,61.9]
[1751941218931,10.0,149.47,149.3,35.9]
[1751941219258,18.64964886,149.4,149.35,7.75375086]
[1751941219470,18.64964886,149.4,149.28,0.14216157]
[1751941219664,18.64964886,149.38,149.33,7.75375086]
[1751941219872,18.64964886,149.38,149.34,4.94175757]
[1751941220059,18.64964886,149.38,149.35,4.94175757]
[1751941220359,18.64964886,149.4,149.36,4.94175757]
[1751941220558,25.34309755,149.4,149.37,4.94175757]
[1751941220767,25.34309755,149.4,149.34,7.75375086]
[1751941221144,25.34309755,149.4,149.3,26.0]
[1751941221145,25.34309755,149.4,149.33,7.75375086]
[1751941221348,18.64964886,149.4,149.33,7.75375086]
[1751941221545,18.64964886,149.4,149.34,7.75375086]
[1751941221749,10.26746218,149.4,149.35,4.93278682]
[1751941222069,16.96101743,149.4,149.36,4.93278682]
[1751941222371,7.68,149.42,149.37,4.93278682]
[1751941222573,7.68,149.42,149.38,4.93278682]
[1751941222574,14.37262745,149.42,149.38,4.93278682]
[1751941222773,43.56,149.42,149.39,4.93278682]
[1751941222948,43.56,149.42,149.4,4.93278682]
[1751941223143,7.68,149.42,149.41,4.93278682]
[1751941223360,10.6913446,149.48,149.41,12.68653768]
[1751941223555,17.38121136,149.48,149.42,12.68653768]
[1751941223847,46.5713446,149.48,149.43,12.68653768]
[1751941224160,10.6913446,149.48,149.44,4.93278682]
[1751941224364,10.6913446,149.48,149.45,4.93278682]
[1751941224573,10.6913446,149.48,149.46,4.9096691]
[1751941224861,10.6913446,149.48,149.47,4.9096691]
[1751941225070,17.38120277,149.48,149.47,4.9096691]
[1751941225275,29.34099346,149.48,149.47,4.9096691]
[1751941225460,10.6913446,149.48,149.47,4.90282558]
[1751941226471,17.38120277,149.48,149.47,4.90282558]
[1751941226775,9.70120277,149.48,149.47,92.20282558]
[1751941226978,9.70120277,149.48,149.47,87.3]
[1751941227180,3.0113446,149.48,149.47,87.3]
[1751941227351,3.0113446,149.48,149.47,92.19324868]
[1751941227864,3.0113446,149.48,149.47,4.89324868]
[1751941228065,1.4234446,149.48,149.47,92.19324868]
[1751941229182,41.86024304,149.53,149.47,99.51753586]
[1751941229369,41.86024304,149.53,149.49,9.14775061]
[1751941229692,41.86024304,149.53,149.5,7.32428718]
[1751941229868,41.86024304,149.53,149.51,7.32428718]
[1751941230063,41.86024304,149.53,149.52,7.32428718]
[1751941230278,48.54786425,149.53,149.52,7.32428718]
[1751941230980,32.68762121,149.53,149.52,7.32428718]
[1751941231502,51.47943164,149.53,149.52,7.32428718]
[1751941231664,43.67301097,149.53,149.52,7.32428718]
[1751941232687,32.68762121,149.53,149.52,7.32428718]
[1751941232983,43.67301097,149.53,149.52,7.32428718]
[1751941235107,32.68762121,149.53,149.52,7.32428718]
[1751941235270,43.67301097,149.53,149.52,7.32428718]
[1751941235470,62.4648214,149.53,149.52,7.32428718]
[1751941235969,36.4648214,149.53,149.52,7.32428718]
[1751941237282,43.67301097,149.53,149.52,7.32428718]
[1751941237793,17.67301097,149.53,149.52,7.32428718]
[1751941238366,10.98538976,149.53,149.52,7.32428718]
[1751941238586,10.98538976,149.56,149.52,7.32428718]
[1751941238789,10.98538976,149.56,149.53,7.32428718]
[1751941239094,10.98538976,149.56,149.51,20.13314037]
[1751941239095,10.98538976,149.55,149.54,7.32428718]
[1751941239407,32.68538574,149.58,149.54,16.47203779]
[1751941239564,11.12755133,149.55,149.54,16.47203779]
[1751941239771,0.14216157,149.54,149.46,35.62]
[1751941240070,10.98538976,149.49,149.46,87.3]
[1751941240574,10.98538976,149.5,149.46,87.3]
[1751941240776,0.14216157,149.51,149.47,7.25967147]
[1751941240985,10.98538976,149.48,149.43,87.3]
[1751941241188,10.98538976,149.45,149.44,7.26546306]
[1751941241567,0.14216157,149.49,149.44,7.26546306]
[1751941241767,10.98538976,149.5,149.41,10.98538976]
[1751941241999,10.98538976,149.46,149.42,10.98538976]
[1751941242881,32.68954156,149.49,149.42,10.98538976]
[1751941243193,10.98538976,149.47,149.43,10.98538976]
[1751941243591,10.98538976,149.46,149.42,10.98538976]
[1751941244092,32.68954156,149.49,149.42,10.98538976]
[1751941244293,10.98538976,149.46,149.42,10.98538976]
[1751941244790,7.74858736,149.46,149.42,7.74858736]
[1751941245371,7.74858736,149.47,149.42,7.74858736]
[1751941245571,7.74858736,149.47,149.41,18.64964886]
[1751941245771,7.74858736,149.47,149.42,7.27411416]
[1751941246889,7.74858736,149.47,149.41,18.64964886]
[1751941247082,6.68988265,149.48,149.41,18.64964886]
[1751941247391,37.2378,149.51,149.44,7.74858736]
[1751941247696,7.74858736,149.51,149.47,7.74858736]
[1751941247907,7.74858736,149.53,149.48,7.74858736]
[1751941248090,7.77858736,149.53,149.48,7.74858736]
[1751941248403,7.77858736,149.53,149.49,7.74858736]
[1751941248694,7.74858736,149.52,149.48,7.74858736]
[1751941249570,7.74858736,149.51,149.45,35.56]
[1751941249772,7.74858736,149.51,149.46,7.74858736]
[1751941250098,7.74858736,149.51,149.45,35.56]
[1751941250099,7.74858736,149.51,149.47,7.74858736]
[1751941250599,7.74858736,149.51,149.46,7.74858736]
[1751941251201,7.74858736,149.5,149.46,7.74858736]
[1751941252003,7.74858736,149.51,149.46,7.74858736]
[1751941252182,6.71762121,149.53,149.46,7.74858736]
[1751941252385,6.71762121,149.53,149.48,7.74858736]
[1751941252386,7.74858736,149.52,149.48,7.74858736]
[1751941253896,7.74858736,149.52,149.47,7.74858736]
[1751941254100,7.74858736,149.52,149.48,7.74858736]
[1751941254601,0.03,149.53,149.45,269.66]
[1751941254778,7.77858736,149.53,149.48,7.74858736]
[1751941255582,7.77858736,149.53,149.48,95.04858736]
[1751941255882,0.03,149.53,149.48,87.3]
[1751941256085,7.74858736,149.52,149.48,95.04858736]
[1751941256289,6.7176285,149.53,149.49,7.35043767]
[1751941256490,7.74858736,149.52,149.49,7.35043767]
[1751941256692,7.74858736,149.52,149.48,95.04858736]
[1751941257404,7.74858736,149.52,149.49,7.36519063]
[1751941257606,7.74858736,149.52,149.48,95.04858736]
[1751941257905,14.43670416,149.52,149.49,7.36545511]
[1751941258110,14.43670416,149.52,149.48,87.3]
[1751941258411,7.74858736,149.51,149.49,7.38175804]
[1751941258592,7.74858736,149.51,149.5,7.38175804]
[1751941259182,21.83012532,149.51,149.46,87.3]
[1751941259428,15.14138825,149.5,149.46,95.04858736]
[1751941259585,7.39280089,149.49,149.46,87.3]
[1751941259780,7.39280089,149.48,149.46,87.3]
[1751941260097,7.39280089,149.47,149.46,87.3]
[1751941260905,7.39280089,149.47,149.46,68.45604811]
[1751941262790,7.39280089,149.47,149.46,76.20463547]
[1751941263189,7.39280089,149.47,149.46,111.60463547]
[1751941264202,7.39280089,149.47,149.46,265.09538884]
[1751941264401,7.39280089,149.47,149.46,258.40463547]
[1751941265283,7.39280089,149.47,149.46,250.65604811]
[1751941265496,7.39280089,149.47,149.46,258.40463547]
[1751941267791,7.39280089,149.47,149.46,250.65604811]
[1751941268197,7.39280089,149.47,149.46,258.40463547]
[1751941268390,7.39280089,149.47,149.46,215.25604811]
[1751941268606,15.14138825,149.47,149.44,35.38]
[1751941268815,7.39280089,149.46,149.44,35.38]
[1751941268998,14.43891371,149.47,149.43,68.51604811]
[1751941268999,7.39280089,149.45,149.43,68.51604811]
[1751941269203,7.39280089,149.44,149.43,0.06]
[1751941269392,7.39280089,149.44,149.43,68.51604811]
[1751941273609,15.14138825,149.44,149.43,0.06]
[1751941274403,21.83303707,149.44,149.43,0.06]
[1751941275312,21.83303707,149.44,149.43,68.51604811]
[1751941276100,18.64964886,149.43,149.38,68.45604811]
[1751941276419,7.74858736,149.39,149.38,68.45604811]
[1751941276718,7.74858736,149.4,149.38,68.45604811]
[1751941276927,6.69264787,149.42,149.38,68.45604811]
[1751941277128,7.74858736,149.4,149.38,68.45604811]
[1751941278516,7.74858736,149.42,149.38,215.25604811]
[1751941278813,7.74858736,149.42,149.38,223.00463547]
[1751941279017,7.48257623,149.41,149.38,250.55604811]
[1751941279220,7.48257623,149.41,149.39,7.74858736]
[1751941279400,16.93728736,149.46,149.4,7.74858736]
[1751941279703,16.93728736,149.46,149.42,7.74858736]
[1751941279704,7.48156278,149.45,149.42,7.74858736]
[1751941279913,7.48156278,149.44,149.41,43.06858736]
[1751941280220,7.48156278,149.43,149.42,7.74858736]
[1751941280427,0.03,149.47,149.42,111.54463547]
[1751941280608,7.48082021,149.46,149.42,111.54463547]
[1751941280920,7.77858736,149.47,149.42,111.54463547]
[1751941281109,7.48216435,149.46,149.42,111.54463547]
[1751941281317,7.48216435,149.46,149.43,7.74858736]
[1751941281707,7.48216435,149.46,149.43,76.20463547]
[1751941281915,7.48216435,149.45,149.43,76.20463547]
[1751941282119,7.48216435,149.44,149.43,76.20463547]
[1751941282306,7.48216435,149.44,149.43,68.45604811]
[1751941282506,7.77858736,149.47,149.43,68.45604811]
[1751941282708,7.48005234,149.46,149.43,68.45604811]
[1751941283426,7.48005234,149.46,149.43,76.20463547]
[1751941283611,0.03,149.47,149.43,76.20463547]
[1751941283926,15.25868211,149.47,149.43,76.20463547]
[1751941284128,7.48009475,149.46,149.43,76.20463547]
[1751941284824,7.77858736,149.47,149.43,76.20463547]
[1751941285030,7.48031929,149.46,149.43,76.20463547]
[1751941286025,15.22890665,149.46,149.43,68.45604811]
[1751941286210,7.74858736,149.46,149.43,68.45604811]
[1751941286413,7.48254334,149.45,149.43,68.45604811]
[1751941286809,7.74858736,149.44,149.43,68.45604811]
[1751941287008,7.74858736,149.44,149.39,76.20463547]
[1751941287235,7.74858736,149.42,149.36,94.45604811]
[1751941287415,7.74858736,149.41,149.36,215.25604811]
[1751941287605,7.74858736,149.39,149.36,215.25604811]
[1751941287811,6.8342582,149.43,149.36,68.45604811]
[1751941288024,7.48325691,149.42,149.36,68.45604811]
[1751941288218,7.74858736,149.39,149.36,68.45604811]
[1751941290733,6.8342582,149.43,149.36,68.45604811]
[1751941290935,7.74858736,149.4,149.36,68.45604811]
[1751941292429,7.74858736,149.39,149.36,68.45604811]
[1751941293008,7.74858736,149.38,149.36,68.45604811]
[1751941293230,7.74858736,149.39,149.36,68.45604811]
[1751941293428,7.74858736,149.4,149.36,68.45604811]
[1751941293812,7.74858736,149.4,149.36,68.51604811]
[1751941295645,7.74858736,149.39,149.36,68.51604811]
[1751941295847,7.74858736,149.37,149.36,68.51604811]
[1751941296619,7.74858736,149.38,149.36,68.51604811]
[1751941297738,6.69353735,149.4,149.36,68.51604811]
[1751941297929,7.74858736,149.38,149.36,68.51604811]
[1751941298136,13.16226427,149.41,149.36,68.51604811]
[1751941298330,7.74858736,149.39,149.36,68.51604811]
[1751941298530,7.74858736,149.38,149.36,68.51604811]
[1751941300941,39.16227934,149.41,149.36,68.51604811]
[1751941301148,4.52528952,149.38,149.36,68.51604811]
[1751941301538,4.52528952,149.39,149.36,68.51604811]
[1751941304223,30.52528952,149.41,149.37,4.52528952]
[1751941304462,37.21842516,149.41,149.36,103.65604811]
[1751941304633,4.52528952,149.39,149.36,68.51604811]
[1751941306941,4.52528952,149.38,149.36,68.51604811]
[1751941309044,4.52528952,149.37,149.36,68.51604811]
[1751941310442,4.52528952,149.38,149.36,68.51604811]
[1751941311154,6.69358192,149.4,149.36,68.51604811]
[1751941311155,4.52528952,149.39,149.36,68.51604811]
[1751941311343,26.0,149.41,149.36,108.12133763]
[1751941311538,30.52528952,149.41,149.36,108.12133763]
[1751941311751,37.21828832,149.41,149.36,108.12133763]
[1751941311933,4.52528952,149.4,149.36,108.12133763]
[1751941312335,4.52528952,149.4,149.36,73.04133763]
[1751941312662,4.52528952,149.4,149.36,68.51604811]
[1751941312964,12.01516939,149.4,149.36,68.51604811]
[1751941313549,4.52528952,149.39,149.36,68.51604811]
[1751941314339,12.02062248,149.39,149.36,68.51604811]
[1751941314671,4.52528952,149.4,149.36,68.51604811]
[1751941314873,12.02072455,149.4,149.36,68.51604811]
[1751941315450,7.49543503,149.4,149.36,73.04133763]
[1751941315751,14.18890919,149.4,149.36,73.04133763]
[1751941315941,6.69347416,149.4,149.36,73.04133763]
[1751941316145,37.21853627,149.41,149.36,73.04133763]
[1751941316360,12.02431159,149.4,149.36,73.04133763]
[1751941317437,12.02431159,149.4,149.36,68.51604811]
[1751941317637,12.02431159,149.4,149.36,72.01604811]
[1751941318066,18.7178784,149.4,149.36,72.01604811]
[1751941318275,12.02847618,149.39,149.36,68.51604811]
[1751941318560,12.02847618,149.38,149.36,68.51604811]
[1751941318754,4.52528952,149.38,149.36,68.51604811]
[1751941319136,12.02912495,149.37,149.36,68.51604811]
[1751941319339,12.17128652,149.37,149.36,0.06]
[1751941319567,32.38223538,149.37,149.36,0.06]
[1751941319861,48.41810606,149.37,149.36,0.06]
[1751941320248,29.7684572,149.37,149.36,0.06]
[1751941321464,25.24316768,149.37,149.36,0.06]
[1751941321681,20.28520971,149.37,149.36,0.06]
[1751941323166,18.79181043,149.36,149.31,68.65604811]
[1751941323354,4.52528952,149.32,149.31,68.65604811]
[1751941323683,12.02912495,149.34,149.31,68.65604811]
[1751941323852,4.52528952,149.34,149.31,68.65604811]
[1751941324248,4.52528952,149.33,149.31,68.65604811]
[1751941324882,12.02062037,149.34,149.31,68.65604811]
[1751941325046,4.52528952,149.33,149.31,68.65604811]
[1751941326855,12.02062037,149.34,149.31,68.65604811]
[1751941327055,4.52528952,149.34,149.31,68.65604811]
[1751941327261,12.01445033,149.34,149.31,68.65604811]
[1751941327750,4.52528952,149.33,149.31,68.65604811]
[1751941328754,76.06593031,149.38,149.32,4.52528952]
[1751941328755,26.0,149.38,149.32,4.52528952]
[1751941328960,7.49010561,149.37,149.33,4.52528952]
[1751941329257,17.36637544,149.42,149.36,4.52528952]
[1751941329460,33.49124254,149.41,149.37,4.52528952]
[1751941329770,7.49124254,149.4,149.37,72.98133763]
[1751941330257,7.49124254,149.4,149.38,4.52528952]
[1751941330459,7.49124254,149.4,149.38,72.98133763]
[1751941331247,37.21790221,149.42,149.38,72.98133763]
[1751941331460,7.50005265,149.41,149.38,72.98133763]
[1751941331669,4.52528952,149.4,149.38,68.45604811]
[1751941331975,18.71900392,149.4,149.38,68.45604811]
[1751941332276,7.50005265,149.39,149.38,68.45604811]
[1751941332460,7.50005265,149.39,149.35,76.48133763]
[1751941333168,4.52528952,149.38,149.35,71.95604811]
[1751941333353,4.52528952,149.38,149.35,68.45604811]
[1751941333755,12.02534217,149.38,149.35,68.45604811]
[1751941333957,4.52528952,149.38,149.35,68.45604811]
[1751941334257,7.50051152,149.38,149.35,72.98133763]
[1751941334670,7.50051152,149.38,149.36,4.52528952]
[1751941334879,11.21868877,149.41,149.36,4.52528952]
[1751941335083,7.50151202,149.4,149.37,4.52528952]
[1751941335259,7.50151202,149.39,149.37,4.52528952]
[1751941335577,11.21868877,149.41,149.37,4.52528952]
[1751941335784,7.50184212,149.4,149.37,4.52528952]
[1751941335998,7.50184212,149.39,149.37,4.52528952]
[1751941336273,11.21868877,149.41,149.37,4.52528952]
[1751941336449,7.50232732,149.4,149.37,4.52528952]
[1751941336652,7.50232732,149.39,149.37,4.52528952]
[1751941336959,11.21868877,149.41,149.37,4.52528952]
[1751941337161,7.50254383,149.4,149.37,4.52528952]
[1751941337954,0.03,149.38,149.37,4.52528952]
[1751941338155,0.03,149.38,149.37,72.98133763]
[1751941338860,0.03,149.38,149.37,68.45604811]
[1751941339066,7.53254383,149.38,149.37,68.45604811]
[1751941339357,12.05783335,149.38,149.37,68.45604811]
[1751941340777,18.75216994,149.38,149.37,68.45604811]
[1751941341180,22.25216994,149.38,149.37,68.45604811]
[1751941349476,15.55783335,149.38,149.37,68.45604811]
[1751941349990,22.25216994,149.38,149.37,68.45604811]
[1751941350992,22.23216994,149.38,149.37,68.45604811]
[1751941351171,15.53783335,149.38,149.37,68.45604811]
[1751941351372,7.53254383,149.38,149.37,68.45604811]
[1751941351709,11.01254383,149.38,149.37,68.45604811]
[1751941353991,7.53254383,149.38,149.37,68.45604811]
[1751941355698,0.03,149.38,149.37,68.45604811]
[1751941355896,7.53254383,149.38,149.37,68.45604811]
[1751941356789,0.03,149.38,149.37,68.45604811]
[1751941356991,7.53254383,149.38,149.37,68.45604811]
[1751941358288,0.03,149.38,149.37,68.45604811]
[1751941358493,7.53254383,149.38,149.37,68.45604811]
[1751941358996,0.03,149.38,149.37,68.45604811]
[1751941360881,7.53865548,149.38,149.37,68.45604811]
[1751941361902,12.063945,149.38,149.37,68.45604811]
[1751941362097,18.75828159,149.38,149.37,68.45604811]
[1751941362988,44.75828159,149.38,149.36,68.51604811]
[1751941363193,15.513945,149.37,149.36,68.51604811]
[1751941364697,22.20872976,149.37,149.36,68.51604811]
[1751941366193,15.513945,149.37,149.36,68.51604811]
[1751941367133,10.98865548,149.37,149.36,68.51604811]
[1751941367699,17.68344024,149.37,149.36,68.51604811]
[1751941367892,15.513945,149.37,149.36,68.51604811]
[1751941369014,22.20872976,149.37,149.36,68.51604811]
[1751941371102,15.513945,149.37,149.36,68.51604811]
[1751941371612,10.98865548,149.37,149.36,68.51604811]
[1751941372124,15.513945,149.37,149.36,68.51604811]
[1751941372712,22.20872976,149.37,149.36,68.51604811]
[1751941373712,22.20872976,149.37,149.36,0.06]
[1751941374826,17.68344024,149.37,149.36,0.06]
[1751941375119,10.98865548,149.37,149.36,0.06]
[1751941375721,7.50865548,149.37,149.36,0.06]
[1751941376917,12.033945,149.37,149.36,0.06]
[1751941377109,18.72872976,149.37,149.36,0.06]
[1751941378019,7.50865548,149.37,149.36,0.06]
[1751941378211,12.033945,149.37,149.36,0.06]
[1751941379728,12.033945,149.37,149.36,68.51604811]
[1751941381530,18.72872976,149.37,149.36,68.51604811]
[1751941382020,12.033945,149.37,149.36,68.51604811]
[1751941382409,7.50865548,149.37,149.36,68.51604811]
[1751941382830,7.53865548,149.37,149.36,68.51604811]
[1751941383528,10.99865548,149.37,149.36,68.51604811]
[1751941383721,15.523945,149.37,149.36,68.51604811]
[1751941385015,22.21872976,149.37,149.36,68.51604811]
[1751941385812,22.36089133,149.37,149.36,68.51604811]
[1751941386034,31.70197725,149.37,149.36,68.51604811]
[1751941386233,22.36089133,149.37,149.36,0.06]
[1751941386834,31.70197725,149.37,149.36,0.06]
[1751941391340,10.99865548,149.37,149.36,0.06]
[1751941391518,10.99865548,149.37,149.36,68.51604811]
[1751941391718,15.523945,149.37,149.36,68.51604811]
[1751941392119,10.99865548,149.37,149.36,68.51604811]
[1751941393940,7.53865548,149.37,149.36,68.51604811]
[1751941394329,7.53865548,149.37,149.36,73.04133763]
[1751941394529,7.53865548,149.37,149.36,68.51604811]
[1751941398151,7.53865548,149.37,149.36,73.04133763]
[1751941399926,0.03,149.37,149.36,73.04133763]
[1751941400524,9.34108592,149.42,149.38,68.39604811]
[1751941400750,7.52159984,149.41,149.38,218.65604811]
[1751941401043,0.03,149.43,149.38,218.65604811]
[1751941401249,7.52059892,149.42,149.38,218.65604811]
[1751941401422,7.52059892,149.41,149.38,218.65604811]
[1751941401621,0.03,149.43,149.38,218.65604811]
[1751941401622,26.03,149.43,149.38,218.65604811]
[1751941401849,7.51719471,149.42,149.41,4.52528952]
[1751941402034,7.51719471,149.42,149.41,72.92133763]
[1751941402230,0.03,149.43,149.41,76.38133763]
[1751941403131,0.03,149.43,149.42,4.52528952]
[1751941404022,0.03,149.43,149.41,76.38133763]
[1751941404243,0.03,149.43,149.41,68.39604811]
[1751941404629,7.53675144,149.43,149.41,68.39604811]
[1751941404950,0.03,149.43,149.41,68.39604811]
[1751941405449,7.53426899,149.43,149.41,68.39604811]
[1751941406043,7.53426899,149.43,149.41,72.92133763]
[1751941406354,0.03,149.43,149.42,4.52528952]
[1751941407254,0.03,149.43,149.42,72.92133763]
[1751941412235,26.0,149.46,149.43,72.89133763]
[1751941412642,26.0,149.46,149.43,76.35133763]
[1751941413242,32.69077634,149.46,149.43,71.82604811]
[1751941413426,30.52528952,149.44,149.43,68.36604811]
[1751941413633,38.00679486,149.44,149.38,72.89133763]
[1751941413832,4.52528952,149.42,149.38,76.35133763]